Workbook

Sheet SP Mechatronika
D3: PLAN STUDIÓW NR I | AB3: ZATWIERDZAM
A4: WYDZIAŁ INŻYNIERII MECHANICZNEJ
D5: PROFIL KSZTAŁCENIA: | I5: PROFIL OGÓLNOAKADEMICKI
D6: POZIOM STUDIÓW: | I6: STUDIA PIERWSZEGO STOPNIA (3,5-letnie, INŻYNIERSKIE)
A7: UNIWERSYTET TECHNOLOGICZNO-PRZYRODNICZY | D7: FORMA STUDIÓW: | I7: STUDIA STACJONARNE | AB7: PROREKTOR
A8: IM. J. i J. ŚNIADECKICH | D8: KIERUNEK: | I8: MECHATRONIKA | AB8: ds. Dydaktycznych i Studenckich
A9: w BYDGOSZCZY | D9: SPECJALNOŚĆ: | I9: 1. PROGRAMOWANIE STEROWNIKÓW
I10: 2. MECHATRONIKA W POJAZDACH SAMOCHODOWYCH
A12: Pozycja planu | B12: NAZWA PRZEDMIOTU | D12: Liczba | G12: GODZINY | L12: ROZKŁAD ZAJĘĆ w SEMESTRZE
G13: Razem | H13: w tym | L13: sem. I | P13: sem. II | T13: sem. III | X13: sem. IV | AB13: sem. V | AF13: sem. VI | AJ13: sem. VII
D14: egza-mi-nów | E14: zali-czeń | F14: pkt. ECTS | H14: W | I14: Ć | J14: L | K14: P / S | L14: Liczba godzin tygodniowo (semestr I - VII po 15 tygodni)
L15: W | M15: Ć | N15: L | O15: P/S | P15: W | Q15: Ć | R15: L | S15: P/S | T15: W | U15: Ć | V15: L | W15: P/S | X15: W | Y15: Ć | Z15: L | AA15: P/S | AB15: W | AC15: Ć | AD15: L | AE15: P/S | AF15: W | AG15: Ć | AH15: L | AI15: P/S | AJ15: W | AK15: Ć | AL15: L | AM15: P/S
A17: A. | B17: PRZEDMIOTY OGÓLNE
A18: 1. | B18: BHP i ergonomia | E18: 1 | F18: 1 | G18: =SUM(H18:K18) -> 15 | H18: 15 | L18: 1 | AN18: =SumaECTS(L18:AM18) -> 1
A19: 2. | B19: Język obcy3 | D19: 1 | E19: 3 | F19: 5 | G19: =SUM(H19:K19) -> 120 | J19: 120 | V19: 2 | Z19: 2 | AD19: 2 | AH19: 2 | AN19: =SumaECTS(L19:AM19) -> 5
A20: 3. | B20: Ochrona własności intelektualnej | E20: 1 | F20: 1 | G20: 15 | H20: 15 | AJ20: 1 | AN20: =SumaECTS(L20:AM20) -> 1
A21: 4. | B21: Podstawy przedsiębiorczości | E21: 1 | F21: 1 | G21: 15 | H21: 15 | AJ21: 1 | AN21: =SumaECTS(L21:AM21) -> 1
A22: 5. | B22: Komunikacja społeczna | E22: 1 | F22: 1 | G22: 15 | H22: 15 | AJ22: 1 | AN22: =SumaECTS(L22:AM22) -> 1
A23: 6. | B23: Przedmioty humanistyczne do wyboru4 | E23: 2 | F23: 3 | G23: 45 | H23: 45 | L23: 2 | P23: 1 | AN23: 3
A24: 7. | B24: Technologie informacyjne | E24: 2 | F24: 3 | G24: 30 | H24: 15 | J24: 15 | L24: 1 | N24: 1 | AN24: 3
A25: 8. | B25: Wychowanie fizyczne5 | E25: 2 | F25: 0 | G25: 60 | I25: 60 | U25: 2 | Y25: 2 | AN25: =SumaECTS(L25:AM25) -> 0
B26: RAZEM | D26: =SUM(D18:D25) -> 1 | E26: 13 | F26: 15 | G26: 315 | H26: 120 | I26: 60 | J26: 135 | K26: 0 | L26: 4 | M26: 0 | N26: 1 | O26: 0 | P26: 1 | Q26: 0 | R26: 0 | S26: 0 | T26: 0 | U26: 2 | V26: 2 | W26: 0 | X26: 0 | Y26: 2 | Z26: 2 | AA26: 0 | AB26: 0 | AC26: 0 | AD26: 2 | AE26: 0 | AF26: 0 | AG26: 0 | AH26: 2 | AI26: 0 | AJ26: 3 | AK26: 0 | AL26: 0 | AM26: 0 | AO26: =SUM(AN18:AN25) -> 15
L27: =SUM(L26:O26) -> 5 | P27: =SUM(P26:S26) -> 1 | T27: =SUM(T26:W26) -> 4 | Y27: =SUM(X26:AA26) -> 4 | AB27: =SUM(AB26:AE26) -> 2 | AF27: =SUM(AF26:AI26) -> 2 | AJ27: =SUM(AJ26:AM26) -> 3
A28: PODSUMOWANIE ARKUSZA 1 | D28: egza-mi-nów | E28: zali-czeń | F28: pkt. ECTS | G28: Razem | H28: W | I28: Ć | J28: L | K28: P / S | L28: sem. I | P28: sem. II | T28: sem. III | X28: sem. IV | AB28: sem. V | AF28: sem. VI | AJ28: sem. VII
L29: W | M29: Ć | N29: L | O29: P/S | P29: W | Q29: Ć | R29: L | S29: P/S | T29: W | U29: Ć | V29: L | W29: P/S | X29: W | Y29: Ć | Z29: L | AA29: P/S | AB29: W | AC29: Ć | AD29: L | AE29: P/S | AF29: W | AG29: Ć | AH29: L | AI29: P/S | AJ29: W | AK29: Ć | AL29: L | AM29: P/S
D31: =SUM(D26) -> 1 | E31: 13 | F31: 15 | G31: 315 | H31: 120 | I31: 60 | J31: 135 | K31: 0 | L31: 4 | M31: 0 | N31: 1 | O31: 0 | P31: 1 | Q31: 0 | R31: 0 | S31: 0 | T31: 0 | U31: 2 | V31: 2 | W31: 0 | X31: 0 | Y31: 2 | Z31: 2 | AA31: 0 | AB31: 0 | AC31: 0 | AD31: 2 | AE31: 0 | AF31: 0 | AG31: 0 | AH31: 2 | AI31: 0 | AJ31: 3 | AK31: 0 | AL31: 0 | AM31: 0 | AO31: SUMA
L32: =SUM(L31:O31) -> 5 | P32: =SUM(P31:S31) -> 1 | T32: =SUM(T31:W31) -> 4 | X32: =SUM(X31:AA31) -> 4 | AB32: =SUM(AB31:AE31) -> 2 | AF32: =SUM(AF31:AI31) -> 2 | AJ32: =SUM(AJ31:AM31) -> 3 | AO32: =SUM(L32:AM32)*15 -> 315
D33: Liczba: | G33: egzaminów | L33: 0 | P33: 0 | T33: 0 | X33: 0 | AB33: 0 | AF33: 1 | AJ33: 0 | AO33: =SUM(L33:AM33) -> 1
G34: zaliczeń | L34: 4 | P34: 1 | T34: 2 | X34: 2 | AB34: 1 | AF34: 0 | AJ34: 3 | AO34: =SUM(L34:AM34) -> 13
G35: pkt. ECTS | L35: =SumaECTS(L18:O25) -> 6 | P35: =SumaECTS(P18:S25) -> 1 | T35: 1 | X35: 1 | AB35: 1 | AF35: 2 | AJ35: 3 | AO35: =SUM(L35:AM35) -> 15
A37: UWAGI: | AC37: Obowiązuje od roku akademickiego: 2018/2019
A38: 1. | B38: Dla studentów I roku studiów stacjonarnych I stopnia wszystkie formy zajęć dydaktycznych przewidziane w planie studiów są obowiązkowe.
B39: Na wyższych latach obowiązkowe są: ćwiczenia audytoryjne, laboratoryjne, lektoraty, zajęcia: sportowe, terenowe, projektowe, plenerowe i seminaria. | AC39: Legenda:
A40: 2. | B40: Studentów obowiązuje zaliczenie 4 tygodniowej praktyki zawodowej po IV semestrze (4 pkt ECTS). | AC40: W | AD40: - wykład
A41: 3. | B41: Język obcy do wyboru spośród: 1. Język angielski, 2. Język niemiecki. | AC41: Ć | AD41: - ćwiczenia audytoryjne
A42: 4. | B42: Przedmioty humanistyczne do wyboru spośród: 1. Ekonomia; 2. Psychologia; 3. Socjologia ogólna; 4. Filozofia. | AC42: L | AD42: - ćwiczenia laboratoryjne, lektorat języków obcych
A43: 5. | B43: Wychowanie fizyczne - studenci dokonują wyboru jednej formy zajęć z oferty SWFiS. | AC43: P | AD43: - ćwiczenia projektowe
AC44: S | AD44: - seminarium
AC45: T | AD45: - zajęcia terenowe
AD46: - egzamin
AB47: ARKUSZ 1
D48: PLAN STUDIÓW NR I | AB48: ZATWIERDZAM
A49: WYDZIAŁ INŻYNIERII MECHANICZNEJ
D50: PROFIL KSZTAŁCENIA: | I50: PROFIL OGÓLNOAKADEMICKI
D51: POZIOM STUDIÓW: | I51: STUDIA PIERWSZEGO STOPNIA (3,5-letnie, INŻYNIERSKIE)
A52: UNIWERSYTET TECHNOLOGICZNO-PRZYRODNICZY | D52: FORMA STUDIÓW: | I52: STUDIA STACJONARNE | AB52: PROREKTOR
A53: IM. J. i J. ŚNIADECKICH | D53: KIERUNEK: | I53: MECHATRONIKA | AB53: ds. Dydaktycznych i Studenckich
A54: w BYDGOSZCZY | D54: SPECJALNOŚĆ: | I54: 1. PROGRAMOWANIE STEROWNIKÓW
I55: 2. MECHATRONIKA W POJAZDACH SAMOCHODOWYCH
A57: Pozycja planu | B57: NAZWA PRZEDMIOTU | D57: Liczba | G57: GODZINY | L57: ROZKŁAD ZAJĘĆ w SEMESTRZE
G58: Razem | H58: w tym | L58: sem. I | P58: sem. II | T58: sem. III | X58: sem. IV | AB58: sem. V | AF58: sem. VI | AJ58: sem. VII
D59: egza-mi-nów | E59: zali-czeń | F59: pkt. ECTS | H59: W | I59: Ć | J59: L | K59: P / S | L59: Liczba godzin tygodniowo (semestr I - VII po 15 tygodni)
L60: W | M60: Ć | N60: L | O60: P/S | P60: W | Q60: Ć | R60: L | S60: P/S | T60: W | U60: Ć | V60: L | W60: P/S | X60: W | Y60: Ć | Z60: L | AA60: P/S | AB60: W | AC60: Ć | AD60: L | AE60: P/S | AF60: W | AG60: Ć | AH60: L | AI60: P/S | AJ60: W | AK60: Ć | AL60: L | AM60: P/S
A62: B. | B62: PRZEDMIOTY PODSTAWOWE
A63: 1. | B63: Fizyka | E63: 3 | F63: 4 | G63: =SUM(H63:K63) -> 60 | H63: 30 | I63: 15 | J63: 15 | L63: 2 | M63: 1 | R63: 1 | AN63: =SumaECTS(L63:AM63) -> 4
A64: 2. | B64: Chemia | E64: 2 | F64: 4 | G64: =SUM(H64:K64) -> 30 | H64: 15 | I64: 15 | L64: 1 | M64: 1 | AN64: 4
A65: 3. | B65: Matematyka | D65: 1 | E65: 3 | F65: 5 | G65: =SUM(H65:K65) -> 120 | H65: 60 | I65: 60 | L65: 2 | M65: 2 | P65: 2 | Q65: 2 | AN65: 5
A66: 4. | B66: Mechanika | D66: 1 | E66: 3 | F66: 5 | G66: 90 | H66: 45 | I66: 30 | J66: 15 | P66: 2 | Q66: 2 | R66: 1 | T66: 1 | AN66: 5
A67: 5. | B67: Wytrzymałość materiałów | E67: 3 | F67: 4 | G67: =SUM(H67:K67) -> 60 | H67: 30 | I67: 15 | J67: 15 | P67: 2 | Q67: 1 | R67: 1 | AN67: 4
A68: 6. | B68: Podstawy konstrukcji maszyn i urządzeń specjalnych | D68: 1 | E68: 2 | F68: 6 | G68: =SUM(H68:K68) -> 60 | H68: 30 | I68: 15 | J68: 15 | L68: 2 | M68: 1 | N68: 1 | AN68: 6
A69: 7. | B69: Teoria mechanizmów i maszyn | D69: 1 | E69: 1 | F69: 5 | G69: =SUM(H69:K69) -> 45 | H69: 15 | K69: 30 | T69: 1 | W69: 2 | AN69: 5
A70: 8. | B70: Materiały inżynierskie | E70: 2 | F70: 4 | G70: =SUM(H70:K70) -> 45 | H70: 30 | J70: 15 | P70: 2 | R70: 1 | AN70: 4
A71: 9. | B71: Informatyka | E71: 2 | F71: 4 | G71: =SUM(H71:K71) -> 45 | H71: 15 | J71: 30 | P71: 1 | R71: 2 | AN71: 4
B72: RAZEM | D72: =SUM(D63:D71) -> 4 | E72: 21 | F72: 41 | G72: =SUM(G63:G71) -> 555 | H72: 270 | I72: 150 | J72: 105 | K72: 30 | L72: 7 | M72: 5 | N72: 1 | O72: 0 | P72: 9 | Q72: 5 | R72: 6 | S72: 0 | T72: 2 | U72: 0 | V72: 0 | W72: 2 | X72: 0 | Y72: 0 | Z72: 0 | AA72: 0 | AB72: 0 | AC72: 0 | AD72: 0 | AE72: 0 | AF72: 0 | AG72: 0 | AH72: 0 | AI72: 0 | AJ72: 0 | AK72: 0 | AL72: 0 | AM72: 0 | AO72: =SUM(AN63:AN71) -> 41
L73: =SUM(L72:O72) -> 13 | P73: =SUM(P72:S72) -> 20 | T73: =SUM(T72:W72) -> 4 | X73: =SUM(X72:AA72) -> 0 | AB73: =SUM(AB72:AE72) -> 0 | AF73: =SUM(AF72:AI72) -> 0 | AJ73: =SUM(AJ72:AM72) -> 0
A74: PODSUMOWANIE ARKUSZA 1+2 | D74: egza-mi-nów | E74: zali-czeń | F74: pkt. ECTS | G74: Razem | H74: W | I74: Ć | J74: L | K74: P / S | L74: sem. I | P74: sem. II | T74: sem. III | X74: sem. IV | AB74: sem. V | AF74: sem. VI | AJ74: sem. VII
L75: W | M75: Ć | N75: L | O75: P/S | P75: W | Q75: Ć | R75: L | S75: P/S | T75: W | U75: Ć | V75: L | W75: P/S | X75: W | Y75: Ć | Z75: L | AA75: P/S | AB75: W | AC75: Ć | AD75: L | AE75: P/S | AF75: W | AG75: Ć | AH75: L | AI75: P/S | AJ75: W | AK75: Ć | AL75: L | AM75: P/S
D77: =SUM(D26+D72) -> 5 | E77: 34 | F77: 56 | G77: 870 | H77: 390 | I77: 210 | J77: 240 | K77: 30 | L77: 11 | M77: 5 | N77: 2 | O77: 0 | P77: 10 | Q77: 5 | R77: 6 | S77: 0 | T77: 2 | U77: 2 | V77: 2 | W77: 2 | X77: =SUM(X26+X72) -> 0 | Y77: 2 | Z77: 2 | AA77: 0 | AB77: 0 | AC77: 0 | AD77: 2 | AE77: 0 | AF77: 0 | AG77: 0 | AH77: 2 | AI77: 0 | AJ77: 3 | AK77: 0 | AL77: 0 | AM77: 0 | AO77: SUMA
L78: =SUM(L77:O77) -> 18 | P78: =SUM(P77:S77) -> 21 | T78: =SUM(T77:W77) -> 8 | X78: =SUM(X77:AA77) -> 4 | AB78: =SUM(AB77:AE77) -> 2 | AF78: =SUM(AF77:AI77) -> 2 | AJ78: =SUM(AJ77:AM77) -> 3 | AO78: =SUM(L78:AM78)*15 -> 870
D79: Liczba: | G79: egzaminów | L79: 1 | P79: 2 | T79: 1 | X79: 0 | AB79: 0 | AF79: 1 | AJ79: 0 | AO79: =SUM(L79:AM79) -> 5
G80: zaliczeń | L80: 12 | P80: 12 | T80: 4 | X80: 2 | AB80: 1 | AF80: 0 | AJ80: 3 | AO80: =SUM(L80:AM80) -> 34
G81: pkt. ECTS | L81: 21 | P81: 21 | T81: 7 | X81: 1 | AB81: =AB35+SumaECTS(AB63:AE71) -> 1 | AF81: =AF35+SumaECTS(AF63:AI71) -> 2 | AJ81: 3 | AO81: =SUM(L81:AM81) -> 56
A83: UWAGI: | AC83: Obowiązuje od roku akademickiego: 2018/2019
A84: 1. | B84: Dla studentów I roku studiów stacjonarnych I stopnia wszystkie formy zajęć dydaktycznych przewidziane w planie studiów są obowiązkowe.
B85: Na wyższych latach obowiązkowe są: ćwiczenia audytoryjne, laboratoryjne, lektoraty, zajęcia: sportowe, terenowe, projektowe, plenerowe i seminaria. | AC85: Legenda:
A86: 2. | B86: Studentów obowiązuje zaliczenie 4 tygodniowej praktyki zawodowej po IV semestrze (4 pkt ECTS). | AC86: W | AD86: - wykład
A87: 3. | B87: Język obcy do wyboru spośród: 1. Język angielski, 2. Język niemiecki. | AC87: Ć | AD87: - ćwiczenia audytoryjne
A88: 4. | B88: Przedmioty humanistyczne do wyboru spośród: 1. Ekonomia; 2. Psychologia; 3. Socjologia ogólna; 4. Filozofia. | AC88: L | AD88: - ćwiczenia laboratoryjne, lektorat języków obcych
A89: 5. | B89: Wychowanie fizyczne - studenci dokonują wyboru jednej formy zajęć z oferty SWFiS. | AC89: P | AD89: - ćwiczenia projektowe
AC90: S | AD90: - seminarium
AC91: T | AD91: - zajęcia terenowe
AD92: - egzamin
AB93: ARKUSZ 2
D94: PLAN STUDIÓW NR I | AB94: ZATWIERDZAM
A95: WYDZIAŁ INŻYNIERII MECHANICZNEJ
D96: PROFIL KSZTAŁCENIA: | I96: PROFIL OGÓLNOAKADEMICKI
D97: POZIOM STUDIÓW: | I97: STUDIA PIERWSZEGO STOPNIA (3,5-letnie, INŻYNIERSKIE)
A98: UNIWERSYTET TECHNOLOGICZNO-PRZYRODNICZY | D98: FORMA STUDIÓW: | I98: STUDIA STACJONARNE | AB98: PROREKTOR
A99: IM. J. i J. ŚNIADECKICH | D99: KIERUNEK: | I99: MECHATRONIKA | AB99: ds. Dydaktycznych i Studenckich
A100: w BYDGOSZCZY | D100: SPECJALNOŚĆ: | I100: 1. PROGRAMOWANIE STEROWNIKÓW
I101: 2. MECHATRONIKA W POJAZDACH SAMOCHODOWYCH
A103: Pozycja planu | B103: NAZWA PRZEDMIOTU | D103: Liczba | G103: GODZINY | L103: ROZKŁAD ZAJĘĆ w SEMESTRZE
G104: Razem | H104: w tym | L104: sem. I | P104: sem. II | T104: sem. III | X104: sem. IV | AB104: sem. V | AF104: sem. VI | AJ104: sem. VII
D105: egza-mi-nów | E105: zali-czeń | F105: pkt. ECTS | H105: W | I105: Ć | J105: L | K105: P / S | L105: Liczba godzin tygodniowo (semestr I - VII po 15 tygodni)
L106: W | M106: Ć | N106: L | O106: P/S | P106: W | Q106: Ć | R106: L | S106: P/S | T106: W | U106: Ć | V106: L | W106: P/S | X106: W | Y106: Ć | Z106: L | AA106: P/S | AB106: W | AC106: Ć | AD106: L | AE106: P/S | AF106: W | AG106: Ć | AH106: L | AI106: P/S | AJ106: W | AK106: Ć | AL106: L | AM106: P/S
A108: C. | B108: PRZEDMIOTY KIERUNKOWE
A109: 1. | B109: Wprowadzenie do mechatroniki | E109: 1 | F109: 4 | G109: =SUM(H109:K109) -> 30 | H109: 30 | L109: 2 | AN109: =SumaECTS(L109:AM109) -> 4
A110: 2. | B110: Grafika inżynierska | D110: 1 | E110: 1 | F110: 5 | G110: 90 | H110: 30 | J110: 60 | L110: 2 | N110: 4 | AN110: 5
A111: 3. | B111: Podstawy elektrotechniki | D111: 1 | E111: 2 | F111: 7 | G111: 75 | H111: 30 | I111: 15 | J111: 30 | P111: 2 | Q111: 1 | V111: 2 | AN111: 7
A112: 4. | B112: Teoria sterowania | D112: 1 | E112: 2 | F112: 7 | G112: 60 | H112: 30 | J112: 15 | K112: 15 | X112: 2 | Z112: 1 | AA112: 1 | AN112: 7
A113: 5. | B113: Napędy maszyn i urządzeń | D113: 1 | E113: 1 | F113: 5 | G113: 45 | H113: 30 | K113: 15 | T113: 2 | W113: 1 | AN113: 5
A114: 6. | B114: Komputerowe wspomaganie projektowania | E114: 2 | F114: 4 | G114: 45 | J114: 45 | V114: 2 | Z114: 1 | AN114: 4
A115: 7. | B115: Systemy pomiarowe i metrologia | E115: 2 | F115: 4 | G115: 45 | H115: 30 | J115: 15 | P115: 2 | R115: 1 | AN115: 4
A116: 8. | B116: Podstawy robotyki | E116: 1 | F116: 3 | G116: 30 | H116: 30 | T116: 2 | AN116: 3
A117: 9. | B117: Sieci komputerowe i technologie internetowe | E117: 2 | F117: 3 | G117: 30 | H117: 15 | J117: 15 | T117: 1 | V117: 1 | AN117: 3
A118: 10. | B118: Mechatronika w systemach technicznych | E118: 2 | F118: 4 | G118: 45 | H118: 15 | K118: 30 | AB118: 1 | AE118: 2 | AN118: 4
A119: 11. | B119: Transmisja danych | D119: 1 | E119: 1 | F119: 5 | G119: 45 | H119: 30 | K119: 15 | X119: 2 | AA119: 1 | AN119: 5
A120: 12. | B120: Technika mikroprocesorowa | E120: 2 | F120: 4 | G120: 60 | H120: 30 | J120: 30 | T120: 2 | V120: 2 | AN120: 4
A121: 13. | B121: Bazy danych | D121: 1 | E121: 1 | F121: 4 | G121: 45 | H121: 30 | J121: 15 | X121: 2 | Z121: 1 | AN121: 4
A122: 14. | B122: Sensory i przetworniki wielkości termodynamicznych | E122: 2 | F122: 3 | G122: 45 | H122: 30 | J122: 15 | X122: 2 | Z122: 1 | AN122: 3
A123: 15. | B123: Układy i zespoły elektroniczne w mechatronice | E123: 3 | F123: 4 | G123: 60 | H123: 30 | J123: 15 | K123: 15 | T123: 2 | V123: 1 | W123: 1 | AN123: 4
A124: 16. | B124: Języki programowania | E124: 2 | F124: 7 | G124: 60 | H124: 30 | J124: 30 | AF124: 2 | AH124: 2 | AN124: 7
A125: 17. | B125: Sztuczna inteligencja | D125: 1 | F125: 2 | G125: 30 | H125: 30 | AB125: 2 | AN125: 2
A126: 18. | B126: Podstawy konstrukcji urządzeń specjalnych | E126: 2 | F126: 6 | G126: 60 | H126: 30 | K126: 30 | AB126: 2 | AE126: 2 | AN126: 6
A127: 19. | B127: Techniki wytwarzania i techniki przyrostowe | E127: 3 | F127: 4 | G127: 75 | H127: 30 | J127: 30 | K127: 15 | X127: 2 | Z127: 2 | AA127: 1 | AN127: 4
A128: 20. | B128: Praktyka zawodowa2 | E128: 1 | F128: 4 | X128: x | AN128: 4
A129: 21. | B129: Przygotowanie i złożenie pracy dyplomowej oraz przygotowanie do egzaminu dyplomowego | E129: 1 | F129: 15 | AJ129: X | AN129: 15
B130: RAZEM | D130: =SUM(D109:D129) -> 7 | E130: 34 | F130: 104 | G130: 975 | H130: 510 | I130: 15 | J130: 315 | K130: 135 | L130: 4 | M130: 0 | N130: 4 | O130: 0 | P130: 4 | Q130: 1 | R130: 1 | S130: 0 | T130: 9 | U130: 0 | V130: 8 | W130: 2 | X130: 10 | Y130: 0 | Z130: 6 | AA130: 3 | AB130: 5 | AC130: 0 | AD130: 0 | AE130: 4 | AF130: 2 | AG130: 0 | AH130: 2 | AI130: 0 | AJ130: =SUM(AJ109:AJ128) -> 0 | AK130: =SUM(AK109:AK128) -> 0 | AL130: =SUM(AL109:AL128) -> 0 | AM130: =SUM(AM109:AM128) -> 0 | AO130: =SUM(AN109:AN129) -> 104
L131: =SUM(L130:O130) -> 8 | P131: =SUM(P130:S130) -> 6 | T131: =SUM(T130:W130) -> 19 | X131: =SUM(X130:AA130) -> 19 | AB131: =SUM(AB130:AE130) -> 9 | AF131: =SUM(AF130:AI130) -> 4 | AJ131: =SUM(AJ130:AM130) -> 0
A132: PODSUMOWANIE ARKUSZA 1+2+3 | D132: egza-mi-nów | E132: zali-czeń | F132: pkt. ECTS | G132: Razem | H132: W | I132: Ć | J132: L | K132: P / S | L132: sem. I | P132: sem. II | T132: sem. III | X132: sem. IV | AB132: sem. V | AF132: sem. VI | AJ132: sem. VII
L133: W | M133: Ć | N133: L | O133: P/S | P133: W | Q133: Ć | R133: L | S133: P/S | T133: W | U133: Ć | V133: L | W133: P/S | X133: W | Y133: Ć | Z133: L | AA133: P/S | AB133: W | AC133: Ć | AD133: L | AE133: P/S | AF133: W | AG133: Ć | AH133: L | AI133: P/S | AJ133: W | AK133: Ć | AL133: L | AM133: P/S
D135: =SUM(D26+D130+D72) -> 12 | E135: =SUM(E26+E130+E72) -> 68 | F135: =SUM(F72+F130+F26) -> 160 | G135: =SUM(G130+G72+G26) -> 1845 | H135: =SUM(H26+H130+H72) -> 900 | I135: =SUM(I26+I130+I72) -> 225 | J135: =SUM(J26+J130+J72) -> 555 | K135: =SUM(K26+K130+K72) -> 165 | L135: =SUM(L72+L130+L26) -> 15 | M135: 5 | N135: 6 | O135: 0 | P135: 14 | Q135: 6 | R135: 7 | S135: 0 | T135: 11 | U135: 2 | V135: 10 | W135: 4 | X135: 10 | Y135: 2 | Z135: 8 | AA135: 3 | AB135: 5 | AC135: 0 | AD135: 2 | AE135: 4 | AF135: 2 | AG135: 0 | AH135: 4 | AI135: 0 | AJ135: 3 | AK135: 0 | AL135: 0 | AM135: 0 | AO135: SUMA
L136: =SUM(L135:O135) -> 26 | P136: =SUM(P135:S135) -> 27 | T136: =SUM(T135:W135) -> 27 | X136: =SUM(X135:AA135) -> 23 | AB136: =SUM(AB135:AE135) -> 11 | AF136: =SUM(AF135:AI135) -> 6 | AJ136: =SUM(AJ135:AM135) -> 3 | AO136: =SUM(L136:AM136)*15 -> 1845
D137: Liczba: | G137: egzaminów | L137: 2 | P137: 3 | T137: 2 | X137: 3 | AB137: 1 | AF137: 1 | AJ137: 0 | AO137: =SUM(L137:AM137) -> 12
G138: zaliczeń | L138: 14 | P138: 15 | T138: 15 | X138: 13 | AB138: 5 | AF138: 2 | AJ138: 4 | AO138: =SUM(L138:AM138) -> 68
G139: pkt. ECTS | L139: 30 | P139: 30 | T139: 30 | X139: 30 | AB139: 13 | AF139: 9 | AJ139: 18 | AO139: =SUM(L139:AM139) -> 160
A141: UWAGI: | AC141: Obowiązuje od roku akademickiego: 2018/2019
A142: 1. | B142: Dla studentów I roku studiów stacjonarnych I stopnia wszystkie formy zajęć dydaktycznych przewidziane w planie studiów są obowiązkowe.
B143: Na wyższych latach obowiązkowe są: ćwiczenia audytoryjne, laboratoryjne, lektoraty, zajęcia: sportowe, terenowe, projektowe, plenerowe i seminaria. | AC143: Legenda:
A144: 2. | B144: Studentów obowiązuje zaliczenie 4 tygodniowej praktyki zawodowej po IV semestrze (4 pkt ECTS). | AC144: W | AD144: - wykład
A145: 3. | B145: Język obcy do wyboru spośród: 1. Język angielski, 2. Język niemiecki. | AC145: Ć | AD145: - ćwiczenia audytoryjne
A146: 4. | B146: Przedmioty humanistyczne do wyboru spośród: 1. Ekonomia; 2. Psychologia; 3. Socjologia ogólna; 4. Filozofia. | AC146: L | AD146: - ćwiczenia laboratoryjne, lektorat języków obcych
A147: 5. | B147: Wychowanie fizyczne - studenci dokonują wyboru jednej formy zajęć z oferty SWFiS. | AC147: P | AD147: - ćwiczenia projektowe
AC148: S | AD148: - seminarium
AC149: T | AD149: - zajęcia terenowe
AD150: - egzamin
AB151: ARKUSZ 3
D152: PLAN STUDIÓW NR I | AB152: ZATWIERDZAM
A153: WYDZIAŁ INŻYNIERII MECHANICZNEJ
D154: PROFIL KSZTAŁCENIA: | I154: PROFIL OGÓLNOAKADEMICKI
D155: POZIOM STUDIÓW: | I155: STUDIA PIERWSZEGO STOPNIA (3,5-letnie, INŻYNIERSKIE)
A156: UNIWERSYTET TECHNOLOGICZNO-PRZYRODNICZY | D156: FORMA STUDIÓW: | I156: STUDIA STACJONARNE | AB156: PROREKTOR
A157: IM. J. i J. ŚNIADECKICH | D157: KIERUNEK: | I157: MECHATRONIKA | AB157: ds. Dydaktycznych i Studenckich
A158: w BYDGOSZCZY | D158: SPECJALNOŚĆ: | I158: 1. PROGRAMOWANIE STEROWNIKÓW
A161: Pozycja planu | B161: NAZWA PRZEDMIOTU | D161: Liczba | G161: GODZINY | L161: ROZKŁAD ZAJĘĆ w SEMESTRZE
G162: Razem | H162: w tym | L162: sem. I | P162: sem. II | T162: sem. III | X162: sem. IV | AB162: sem. V | AF162: sem. VI | AJ162: sem. VII
D163: egza-mi-nów | E163: zali-czeń | F163: pkt. ECTS | H163: W | I163: Ć | J163: L | K163: P / S | L163: Liczba godzin tygodniowo (semestr I - VII po 15 tygodni)
L164: W | M164: Ć | N164: L | O164: P/S | P164: W | Q164: Ć | R164: L | S164: P/S | T164: W | U164: Ć | V164: L | W164: P/S | X164: W | Y164: Ć | Z164: L | AA164: P/S | AB164: W | AC164: Ć | AD164: L | AE164: P/S | AF164: W | AG164: Ć | AH164: L | AI164: P/S | AJ164: W | AK164: Ć | AL164: L | AM164: P/S
A166: D.1. | B166: PRZEDMIOTY SPECJALNOŚCIOWE
A167: 1. | B167: Matematyka w mechatronice | E167: 2 | F167: 4 | G167: =SUM(H167:K167) -> 60 | H167: 30 | I167: 30 | AB167: 2 | AC167: 2 | AN167: =SumaECTS(L167:AM167) -> 4
A168: 2. | B168: Projektowanie i programowanie układów sterowania | D168: 1 | E168: 3 | F168: 15 | G168: 120 | H168: 30 | I168: 30 | J168: 30 | K168: 30 | AB168: 2 | AG168: 2 | AH168: 2 | AI168: 2 | AN168: 15
A169: 3. | B169: Programowanie robotów | D169: 1 | E169: 3 | F169: 14 | G169: 120 | H169: 30 | I169: 30 | J169: 30 | K169: 30 | AB169: 2 | AC169: 2 | AH169: 2 | AI169: 2 | AN169: 14
A170: 4. | B170: Automatyzacja procesów przemysłowych | D170: 1 | E170: 2 | F170: 9 | G170: 90 | H170: 30 | J170: 30 | K170: 30 | AJ170: 2 | AL170: 2 | AM170: 2 | AN170: 9
A171: 5. | B171: Panele i interfejsy komunikacyjne | D171: 1 | E171: 1 | F171: 4 | G171: 30 | H171: 15 | K171: 15 | AF171: 1 | AM171: 1 | AN171: 4
A172: 6. | B172: Seminarium dyplomowe | E172: 2 | F172: 4 | G172: 30 | K172: 30 | AI172: 1 | AM172: 1 | AN172: 4
B173: RAZEM | D173: =SUM(D167:D172) -> 4 | E173: 13 | F173: 50 | G173: 450 | H173: 135 | I173: 90 | J173: 90 | K173: 135 | L173: 0 | M173: 0 | N173: 0 | O173: 0 | P173: 0 | Q173: 0 | R173: 0 | S173: 0 | T173: 0 | U173: 0 | V173: 0 | W173: 0 | X173: 0 | Y173: 0 | Z173: 0 | AA173: 0 | AB173: 6 | AC173: 4 | AD173: 0 | AE173: 0 | AF173: 1 | AG173: 2 | AH173: 4 | AI173: 5 | AJ173: 2 | AK173: 0 | AL173: 2 | AM173: 4 | AO173: =SUM(AN167:AN172) -> 50
L174: =SUM(L173:O173) -> 0 | P174: =SUM(P173:S173) -> 0 | T174: =SUM(T173:W173) -> 0 | X174: =SUM(X173:AA173) -> 0 | AB174: =SUM(AB173:AE173) -> 10 | AF174: =SUM(AF173:AI173) -> 12 | AJ174: =SUM(AJ173:AM173) -> 8 | AN174: =SUM(AN1:AN173) -> 210
A175: PODSUMOWANIE ARKUSZA 1+2+3+4 | D175: egza-mi-nów | E175: zali-czeń | F175: pkt. ECTS | G175: Razem | H175: W | I175: Ć | J175: L | K175: P / S | L175: sem. I | P175: sem. II | T175: sem. III | X175: sem. IV | AB175: sem. V | AF175: sem. VI | AJ175: sem. VII
L176: W | M176: Ć | N176: L | O176: P/S | P176: W | Q176: Ć | R176: L | S176: P/S | T176: W | U176: Ć | V176: L | W176: P/S | X176: W | Y176: Ć | Z176: L | AA176: P/S | AB176: W | AC176: Ć | AD176: L | AE176: P/S | AF176: W | AG176: Ć | AH176: L | AI176: P/S | AJ176: W | AK176: Ć | AL176: L | AM176: P/S
D178: =SUM(D26+D72+D173+D130) -> 16 | E178: =SUM(E26+E72+E173+E130) -> 81 | F178: =SUM(F26+F72+F173+F130) -> 210 | G178: =SUM(G26+G72+G130+G173) -> 2295 | H178: =SUM(H135+H173) -> 1035 | I178: =SUM(I135+I173) -> 315 | J178: =SUM(J135+J173) -> 645 | K178: =SUM(K135+K173) -> 300 | L178: =SUM(L26+L130+L173+L72) -> 15 | M178: 5 | N178: 6 | O178: 0 | P178: 14 | Q178: 6 | R178: 7 | S178: 0 | T178: 11 | U178: 2 | V178: 10 | W178: 4 | X178: 10 | Y178: 2 | Z178: 8 | AA178: 3 | AB178: 11 | AC178: 4 | AD178: 2 | AE178: 4 | AF178: 3 | AG178: 2 | AH178: 8 | AI178: 5 | AJ178: 5 | AK178: 0 | AL178: 2 | AM178: 4 | AO178: SUMA
L179: =SUM(L178:O178) -> 26 | P179: =SUM(P178:S178) -> 27 | T179: =SUM(T178:W178) -> 27 | X179: =SUM(X178:AA178) -> 23 | AB179: =SUM(AB178:AE178) -> 21 | AF179: =SUM(AF178:AI178) -> 18 | AJ179: =SUM(AJ178:AM178) -> 11 | AO179: =SUM(L179:AM179)*15 -> 2295
D180: Liczba: | G180: egzaminów | L180: 2 | P180: 3 | T180: 2 | X180: 3 | AB180: 3 | AF180: 2 | AJ180: 1 | AO180: =SUM(L180:AM180) -> 16
G181: zaliczeń | L181: 14 | P181: 15 | T181: 15 | X181: 13 | AB181: 8 | AF181: 8 | AJ181: 8 | AO181: =SUM(L181:AM181) -> 81
G182: pkt. ECTS | L182: =L139+SumaECTS(L167:O172) -> 30 | P182: =P139+SumaECTS(P167:S172) -> 30 | T182: =T139+SumaECTS(T167:W172) -> 30 | X182: =X139+SumaECTS(X167:AA172) -> 30 | AB182: =AB139+SumaECTS(AB167:AE172) -> 30 | AF182: 30 | AJ182: 30 | AO182: =SUM(L182:AM182) -> 210
A184: UWAGI: | AC184: Obowiązuje od roku akademickiego: 2018/2019
A185: 1. | B185: Dla studentów I roku studiów stacjonarnych I stopnia wszystkie formy zajęć dydaktycznych przewidziane w planie studiów są obowiązkowe.
B186: Na wyższych latach obowiązkowe są: ćwiczenia audytoryjne, laboratoryjne, lektoraty, zajęcia: sportowe, terenowe, projektowe, plenerowe i seminaria. | AC186: Legenda:
A187: 2. | B187: Studentów obowiązuje zaliczenie 4 tygodniowej praktyki zawodowej po IV semestrze (4 pkt ECTS). | AC187: W | AD187: - wykład
A188: 3. | B188: Język obcy do wyboru spośród: 1. Język angielski, 2. Język niemiecki. | AC188: Ć | AD188: - ćwiczenia audytoryjne
A189: 4. | B189: Przedmioty humanistyczne do wyboru spośród: 1. Ekonomia; 2. Psychologia; 3. Socjologia ogólna; 4. Filozofia. | AC189: L | AD189: - ćwiczenia laboratoryjne, lektorat języków obcych
A190: 5. | B190: Wychowanie fizyczne - studenci dokonują wyboru jednej formy zajęć z oferty SWFiS. | AC190: P | AD190: - ćwiczenia projektowe
AC191: S | AD191: - seminarium
AC192: T | AD192: - zajęcia terenowe
AD193: - egzamin
AB194: ARKUSZ 4
D213: PLAN STUDIÓW NR I | AB213: ZATWIERDZAM
A214: WYDZIAŁ INŻYNIERII MECHANICZNEJ
D215: PROFIL KSZTAŁCENIA: | I215: PROFIL OGÓLNOAKADEMICKI
D216: POZIOM STUDIÓW: | I216: STUDIA PIERWSZEGO STOPNIA (3,5-letnie, INŻYNIERSKIE)
A217: UNIWERSYTET TECHNOLOGICZNO-PRZYRODNICZY | D217: FORMA STUDIÓW: | I217: STUDIA STACJONARNE | AB217: PROREKTOR
A218: IM. J. i J. ŚNIADECKICH | D218: KIERUNEK: | I218: MECHATRONIKA | AB218: ds. Dydaktycznych i Studenckich
A219: w BYDGOSZCZY | D219: SPECJALNOŚĆ:
I220: 2. MECHATRONIKA W POJAZDACH SAMOCHODOWYCH
A222: Pozycja planu | B222: NAZWA PRZEDMIOTU | D222: Liczba | G222: GODZINY | L222: ROZKŁAD ZAJĘĆ w SEMESTRZE
G223: Razem | H223: w tym | L223: sem. I | P223: sem. II | T223: sem. III | X223: sem. IV | AB223: sem. V | AF223: sem. VI | AJ223: sem. VII
D224: egza-mi-nów | E224: zali-czeń | F224: pkt. ECTS | H224: W | I224: Ć | J224: L | K224: P / S | L224: Liczba godzin tygodniowo (semestr I - VII po 15 tygodni)
L225: W | M225: Ć | N225: L | O225: P/S | P225: W | Q225: Ć | R225: L | S225: P/S | T225: W | U225: Ć | V225: L | W225: P/S | X225: W | Y225: Ć | Z225: L | AA225: P/S | AB225: W | AC225: Ć | AD225: L | AE225: P/S | AF225: W | AG225: Ć | AH225: L | AI225: P/S | AJ225: W | AK225: Ć | AL225: L | AM225: P/S
A227: D.2. | B227: PRZEDMIOTY SPECJALNOŚCIOWE
A228: 1. | B228: Teoria ruchu pojazdów | D228: 1 | E228: 1 | F228: 6 | G228: =SUM(H228:K228) -> 60 | H228: 30 | I228: 30 | AB228: 2 | AC228: 2 | AN228: =SumaECTS(L228:AM228) -> 6
A229: 2. | B229: Elektrotechnika i elektronika samochodowa | D229: 1 | E229: 3 | F229: 13 | G229: 105 | H229: 30 | I229: 30 | J229: 30 | K229: 15 | AB229: 2 | AC229: 2 | AH229: 2 | AI229: 1 | AN229: 13
A230: 3. | B230: Mechatroniczne układy sterowania napędem | D230: 1 | E230: 3 | F230: 9 | G230: 90 | H230: 15 | I230: 15 | J230: 30 | K230: 30 | AJ230: 1 | AK230: 1 | AL230: 2 | AM230: 2 | AN230: 9
A231: 4. | B231: Nowoczesne źródła napędu | D231: 1 | E231: 2 | F231: 7 | G231: 45 | H231: 15 | J231: 15 | K231: 15 | AF231: 1 | AH231: 1 | AI231: 1 | AN231: 7
A232: 5. | B232: Diagnozowanie układów mechatronicznych pokładowych | E232: 3 | F232: 5 | G232: 90 | H232: 30 | J232: 30 | K232: 30 | AB232: 2 | AH232: 2 | AI232: 2 | AN232: 5
A233: 6. | B233: Budowa pojazdów | D233: 1 | E233: 1 | F233: 6 | G233: 30 | H233: 15 | K233: 15 | AF233: 1 | AM233: 1 | AN233: 6
A234: 7. | B234: Seminarium dyplomowe | E234: 2 | F234: 4 | G234: 30 | K234: 30 | AI234: 1 | AM234: 1 | AN234: 4
B235: RAZEM | D235: =SUM(D228:D234) -> 5 | E235: 15 | F235: 50 | G235: 450 | H235: 135 | I235: 75 | J235: 105 | K235: 135 | L235: 0 | M235: 0 | N235: 0 | O235: 0 | P235: 0 | Q235: 0 | R235: 0 | S235: 0 | T235: 0 | U235: 0 | V235: 0 | W235: 0 | X235: 0 | Y235: 0 | Z235: 0 | AA235: 0 | AB235: 6 | AC235: 4 | AD235: 0 | AE235: 0 | AF235: 2 | AG235: 0 | AH235: 5 | AI235: 5 | AJ235: 1 | AK235: 1 | AL235: 2 | AM235: 4 | AO235: =SUM(AN228:AN234) -> 50
L236: =SUM(L235:O235) -> 0 | P236: =SUM(P235:S235) -> 0 | T236: =SUM(T235:W235) -> 0 | X236: =SUM(X235:AA235) -> 0 | AB236: =SUM(AB235:AE235) -> 10 | AF236: =SUM(AF235:AI235) -> 12 | AJ236: =SUM(AJ235:AM235) -> 8
A237: PODSUMOWANIE ARKUSZA 1+2+3+5 | D237: egza-mi-nów | E237: zali-czeń | F237: pkt. ECTS | G237: Razem | H237: W | I237: Ć | J237: L | K237: P / S | L237: sem. I | P237: sem. II | T237: sem. III | X237: sem. IV | AB237: sem. V | AF237: sem. VI | AJ237: sem. VII
L238: W | M238: Ć | N238: L | O238: P/S | P238: W | Q238: Ć | R238: L | S238: P/S | T238: W | U238: Ć | V238: L | W238: P/S | X238: W | Y238: Ć | Z238: L | AA238: P/S | AB238: W | AC238: Ć | AD238: L | AE238: P/S | AF238: W | AG238: Ć | AH238: L | AI238: P/S | AJ238: W | AK238: Ć | AL238: L | AM238: P/S
D240: =SUM(D31+D72+D130+D235) -> 17 | E240: =SUM(E26+E72+E130+E235) -> 83 | F240: =SUM(F26+F72+F235+F130) -> 210 | G240: =SUM(G130+G72+G26+G235) -> 2295 | H240: =(H135+H235) -> 1035 | I240: =(I135+I235) -> 300 | J240: =(J135+J235) -> 660 | K240: =(K135+K235) -> 300 | L240: =L135+L235 -> 15 | M240: 5 | N240: 6 | O240: 0 | P240: 14 | Q240: 6 | R240: 7 | S240: 0 | T240: 11 | U240: 2 | V240: 10 | W240: 4 | X240: 10 | Y240: 2 | Z240: 8 | AA240: 3 | AB240: 11 | AC240: 4 | AD240: 2 | AE240: 4 | AF240: 4 | AG240: 0 | AH240: 9 | AI240: 5 | AJ240: 4 | AK240: 1 | AL240: 2 | AM240: 4 | AN240: SUMA
... 15 more rows

Sheet plan ECTS
B1: Wydział: | C1: INŻYNIERII MECHANICZNEJ
B3: POZIOM STUDIÓW: | C3: STUDIA PIERWSZEGO STOPNIA (3,5-letnie inżynierskie)
B4: FORMA STUDIÓW: | C4: STUDIA STACJONARNE
B5: KIERUNEK: | C5: MECHATRONIKA
B6: SPECJALNOŚĆ: | C6: 1. PROGRAMOWANIE STEROWNIKÓW
C7: 2. MECHATRONIKA W POJAZDACH SAMOCHODOWYCH
B9: Plan nr | C9: I
B10: Obowiązuje od roku akademickiego: | C10: 2018/2019
B12: szkolenie BHP - 4 godz.
A13: Lp. | B13: SEMESTR I | C13: w | D13: ćw | E13: l | F13: p | G13: ECTS
A14: 1. | B14: BHP i ergonomia | C14: 1 | G14: 1
A15: 2. | B15: Przedmioty humanistyczne do wyboru (4) | C15: 2 | G15: 2
A16: 3. | B16: Technologie informacyjne | C16: 1 | E16: 1 | G16: 3
A17: 4. | B17: Fizyka | C17: 2 | D17: 1 | G17: 3
A18: 5. | B18: Chemia | C18: 1 | D18: 1 | G18: 4
A19: 6. | B19: Matematyka | C19: 2 | D19: 2 | G19: 2
A20: 7. | B20: Podstawy konstrukcji maszyn i urządzeń specjalnych | C20: 2 | D20: 1 | E20: 1 | G20: 6
A21: 8. | B21: Wprowadzenie do mechatroniki | C21: 2 | G21: 4
A22: 9. | B22: Grafika inżynierska | C22: 2 | E22: 4 | G22: 5
B23: suma | C23: =SUM(C14:C22) -> 15 | D23: =SUM(D14:D21) -> 5 | E23: =SUM(E14:E22) -> 6 | F23: =SUM(F14:F21) -> 0 | G23: =SUM(G14:G22) -> 30
C24: =SUM(C23:F23) -> 26
A25: Lp. | B25: SEMESTR II | C25: w | D25: ćw | E25: l | F25: p | G25: ECTS
A26: 1. | B26: Przedmioty humanistyczne do wyboru (4) | C26: 1 | G26: 1
A27: 2. | B27: Fizyka | E27: 1 | G27: 1
A28: 3. | B28: Matematyka | C28: 2 | D28: 2 | G28: 3
A29: 4. | B29: Mechanika | C29: 2 | D29: 2 | E29: 1 | G29: 4
A30: 5. | B30: Wytrzymałość materiałów | C30: 2 | D30: 1 | E30: 1 | G30: 4
A31: 6. | B31: Materiały inżynierskie | C31: 2 | E31: 1 | G31: 4
A32: 7. | B32: Informatyka | C32: 1 | E32: 2 | G32: 4
A33: 8. | B33: Podstawy elektrotechniki | C33: 2 | D33: 1 | G33: 5
A34: 9. | B34: Systemy pomiarowe i metrologia | C34: 2 | E34: 1 | G34: 4
B35: suma | C35: =SUM(C26:C34) -> 14 | D35: =SUM(D26:D34) -> 6 | E35: =SUM(E26:E34) -> 7 | F35: =SUM(F26:F34) -> 0 | G35: =SUM(G26:G34) -> 30
C36: =SUM(C35:F35) -> 27
A37: Lp. | B37: SEMESTR III | C37: w | D37: ćw | E37: l | F37: p | G37: ECTS
A38: 1. | B38: Język obcy (3) | E38: 2 | G38: 1
A39: 2. | B39: Wychowanie fizyczne (5) | D39: 2 | G39: 0
A40: 3. | B40: Mechanika | C40: 1 | G40: 1
A41: 4. | B41: Teoria mechanizmów i maszyn | C41: 1 | F41: 2 | G41: 5
A42: 5. | B42: Podstawy elektrotechniki | E42: 2 | G42: 2
A43: 6. | B43: Napędy maszyn i urządzeń | C43: 2 | F43: 1 | G43: 5
A44: 7. | B44: Komputerowe wspomaganie projektowania | E44: 2 | G44: 2
A45: 8. | B45: Podstawy robotyki | C45: 2 | G45: 3
A46: 9. | B46: Sieci komputerowe i technologie internetowe | C46: 1 | E46: 1 | G46: 3
A47: 10. | B47: Techniki mikroprocesorowa | C47: 2 | E47: 2 | G47: 4
A48: 11. | B48: Układy i zespoły elektroniczne w mechatronice | C48: 2 | E48: 1 | F48: 1 | G48: 4
B49: suma | C49: =SUM(C38:C48) -> 11 | D49: =SUM(D38:D47) -> 2 | E49: =SUM(E38:E48) -> 10 | F49: =SUM(F38:F48) -> 4 | G49: =SUM(G38:G48) -> 30
C50: =SUM(C49:F49) -> 27
A51: Lp. | B51: SEMESTR IV | C51: w | D51: ćw | E51: l | F51: p | G51: ECTS
A52: 1. | B52: Język obcy (3) | E52: 2 | G52: 1
A53: 2. | B53: Wychowanie fizyczne (5) | D53: 2 | G53: 0
A54: 3. | B54: Teoria sterowania | C54: 2 | E54: 1 | F54: 1 | G54: 7
A55: 4. | B55: Komputerowe wspomaganie projektowania | E55: 1 | G55: 2
A56: 5. | B56: Transmisja danych | C56: 2 | F56: 1 | G56: 5
A57: 6. | B57: Bazy danych | C57: 2 | E57: 1 | G57: 4
A58: 7. | B58: Sensory i przetworniki wielkości termodynamicznych | C58: 2 | E58: 1 | G58: 3
A59: 8. | B59: Techniki wytwarzania i techniki przyrostowe | C59: 2 | E59: 2 | F59: 1 | G59: 4
A60: 9. | B60: Praktyka zawodowa | G60: 4
B61: suma | C61: =SUM(C52:C60) -> 10 | D61: =SUM(D52:D60) -> 2 | E61: =SUM(E52:E60) -> 8 | F61: =SUM(F52:F60) -> 3 | G61: =SUM(G52:G60) -> 30
C62: =SUM(C61:F61) -> 23
A63: Lp. | B63: SEMESTR V sp.1 | C63: w | D63: ćw | E63: l | F63: p | G63: ECTS
A64: 1. | B64: Język obcy (3) | E64: 2 | G64: 1
A65: 2. | B65: Mechatronika w systemach technicznych | C65: 1 | F65: 2 | G65: 4
A66: 3. | B66: Sztuczna inteligencja | C66: 2 | G66: 2
A67: 4. | B67: Podstawy konstrukcji urządzeń specjalnych | C67: 2 | F67: 2 | G67: 6
A68: 5. | B68: Matematyka w mechatronice | C68: 2 | D68: 2 | G68: 4
A69: 6. | B69: Projektowanie i programowanie układów sterowania | C69: 2 | G69: 6
A70: 7. | B70: Programowanie robotów | C70: 2 | D70: 2 | G70: 7
B71: suma | C71: =SUM(C64:C70) -> 11 | D71: =SUM(D64:D70) -> 4 | E71: =SUM(E64:E70) -> 2 | F71: =SUM(F64:F70) -> 4 | G71: =SUM(G64:G70) -> 30
C72: =SUM(C71:F71) -> 21
A73: Lp. | B73: SEMESTR VI sp. 1 | C73: w | D73: ćw | E73: l | F73: p | G73: ECTS
A74: 1. | B74: Język obcy (3) | E74: 2 | G74: 2
A75: 2. | B75: Języki programowania | C75: 2 | E75: 2 | G75: 7
A76: 3. | B76: Projektowanie i programowanie układów sterowania | D76: 2 | E76: 2 | F76: 2 | G76: 9
A77: 4. | B77: Programowanie robotów | E77: 2 | F77: 2 | G77: 7
A78: 5. | B78: Panele i interfejsy komunikacyjne | C78: 1 | G78: 3
A79: 6. | B79: Seminarium dyplomowe | F79: 1 | G79: 2
B80: suma | C80: =SUM(C74:C79) -> 3 | D80: =SUM(D74:D79) -> 2 | E80: =SUM(E74:E79) -> 8 | F80: =SUM(F74:F79) -> 5 | G80: =SUM(G74:G79) -> 30
C81: =SUM(C80:F80) -> 18
A82: Lp. | B82: SEMESTR VII sp. 1 | C82: w | D82: ćw | E82: l | F82: p | G82: ECTS
A83: 1. | B83: Ochrona własności intelektualnej | C83: 1 | G83: 1
A84: 2. | B84: Podstawy przedsiębiorczości | C84: 1 | G84: 1
A85: 3. | B85: Komunikacja społeczna | C85: 1 | G85: 1
A86: 4. | B86: Automatyzacja procesów przemysłowych | C86: 2 | E86: 2 | F86: 2 | G86: 9
A87: 5. | B87: Panele i interfejsy komunikacyjne | F87: 1 | G87: 1
A88: 6. | B88: Seminarium dyplomowe | F88: 1 | G88: 2
A89: 7. | B89: Przygotowanie i złożenie pracy dyplomowej oraz przygotowanie do egzaminu dyplomowego | G89: 15
B90: suma | C90: =SUM(C83:C89) -> 5 | D90: =SUM(D83:D89) -> 0 | E90: =SUM(E83:E89) -> 2 | F90: =SUM(F83:F89) -> 4 | G90: =SUM(G83:G89) -> 30
C91: =SUM(C90:F90) -> 11
A92: Lp. | B92: SEMESTR V sp. 2 | C92: w | D92: ćw | E92: l | F92: p | G92: ECTS
A93: 1. | B93: Język obcy (3) | E93: 2 | G93: 1
A94: 2. | B94: Mechatronika w systemach technicznych | C94: 1 | F94: 2 | G94: 4
A95: 3. | B95: Sztuczna inteligencja | C95: 2 | G95: 2
A96: 4. | B96: Podstawy konstrukcji urządzeń specjalnych | C96: 2 | F96: 2 | G96: 6
A97: 5. | B97: Teoria ruchu pojazdów | C97: 2 | D97: 2 | G97: 6
A98: 6. | B98: Elektrotechnika i elektronika samochodowa | C98: 2 | D98: 2 | G98: 9
A99: 7. | B99: Diagnozowanie układów mechatronicznych pokładowych | C99: 2 | G99: 2
C100: =SUM(C93:C99) -> 11 | D100: =SUM(D93:D99) -> 4 | E100: =SUM(E93:E99) -> 2 | F100: =SUM(F93:F99) -> 4 | G100: =SUM(G93:G99) -> 30
B101: suma | C101: =SUM(C100:F100) -> 21
A102: Lp. | B102: SEMESTR VI sp. 2 | C102: w | D102: ćw | E102: l | F102: p | G102: ECTS
A103: 1. | B103: Język obcy (3) | E103: 2 | G103: 2
A104: 2. | B104: Języki programowania | C104: 2 | E104: 2 | G104: 7
A105: 3. | B105: Elektrotechnika i elektronika samochodowa | E105: 2 | F105: 1 | G105: 4
A106: 4. | B106: Nowoczesne źródła napędu | C106: 1 | E106: 1 | F106: 1 | G106: 7
A107: 5. | B107: Diagnozowanie układów mechatronicznych pokładowych | E107: 2 | F107: 2 | G107: 3
A108: 6. | B108: Budowa pojazdów | C108: 1 | G108: 5
A109: 7. | B109: Seminarium dyplomowe | F109: 1 | G109: 2
C110: =SUM(C103:C109) -> 4 | D110: =SUM(D103:D109) -> 0 | E110: =SUM(E103:E109) -> 9 | F110: =SUM(F103:F109) -> 5 | G110: =SUM(G103:G109) -> 30
B111: suma | C111: =SUM(C110:F110) -> 18
A112: Lp. | B112: SEMESTR VII sp. 2 | C112: w | D112: ćw | E112: l | F112: p | G112: ECTS
A113: 1. | B113: Ochrona własności intelektualnej | C113: 1 | G113: 1
A114: 2. | B114: Podstawy przedsiębiorczości | C114: 1 | G114: 1
A115: 3. | B115: Komunikacja społeczna | C115: 1 | G115: 1
A116: 4. | B116: Mechatroniczne układy sterowania napędem | C116: 1 | D116: 1 | E116: 2 | F116: 2 | G116: 9
A117: 5. | B117: Budowa pojazdów | F117: 1 | G117: 1
A118: 6. | B118: Seminarium dyplomowe | F118: 1 | G118: 2
A119: 7. | B119: Przygotowanie i złożenie pracy dyplomowej oraz przygotowanie do egzaminu dyplomowego | G119: 15
B120: suma | C120: =SUM(C113:C119) -> 4 | D120: =SUM(D113:D119) -> 1 | E120: =SUM(E113:E119) -> 2 | F120: =SUM(F113:F119) -> 4 | G120: =SUM(G113:G119) -> 30
C121: =SUM(C120:F120) -> 11

Sheet SP analiza
A1: ANALIZA ZGODNOŚCI PLANU STUDIÓW
A2: Z WYTYCZNYMI DO PROJEKTOWANIA I MODYFIKACJI PROGRAMÓW STUDIÓW W UTP
B4: Jednostka prowadząca kierunek studiów | E4: Wydział Inżynierii Mechanicznej
B5: Nazwa kierunku studiów | E5: Mechatronika
B6: Specjalność | E6: 1. Programowanie sterowników
E7: 2. Mechatronika w pojazdach samochodowych
B8: Rok akademicki, od którego obowiązuje plan studiów | E8: 2018/2019
B9: Numer planu studiów | E9: I
B10: Forma studiów | E10: studia stacjonarne
B11: Poziom studiów | E11: studia pierwszego stopnia (3,5-letnie inżynierskie)
B12: OGÓLNA LICZBA GODZIN | E12: 2295 | F12: OGÓLNA LICZBA PKT. ECTS | J12: 210
B13: B I L A N S G O D Z I N I P U N K T Ó W E C T S 1
B14: Przedmiot/moduł | F14: Godziny | H14: Pozycje planu | I14: Punkty ECTS
F15: Liczba | G15: % | I15: Liczba | J15: %
B16: Zajęcia z obszaru nauk humanistycznych i nauk społecznych łącznie: | F16: =SUM(F17:F19) -> 105 | G16: =SUM(G17:G19) -> 0.04575163399 | I16: =SUM(I17:I19) -> 7 | J16: =SUM(J17:J19) -> 0.03333333333
B17: 1. | C17: w tym w zakresie ochrony własności intelektualnej i/lub bezpieczeństwa i higieny pracy 2 | F17: 30 | G17: =F17/E12 -> 0.01307189542 | H17: A.1;A.3 | I17: 2 | J17: =I17/J12 -> 0.009523809524
B18: 2. | C18: w tym w zakresie podstaw przedsiębiorczości i uzyskiwania tzw. kompetencji miękkich 2 | F18: 30 | G18: =F18/E12 -> 0.01307189542 | H18: A.4; A.5 | I18: 2 | J18: =I18/J12 -> 0.009523809524
B19: 3. | C19: w tym inne zajęcia z zakresu nauk humanistycznych i nauk społecznych, nieujęte w pkt 1 i 2 | F19: 45 | G19: =F19/E12 -> 0.01960784314 | H19: A.6 | I19: 3 | J19: =I19/J12 -> 0.01428571429
B20: Zajęcia z języków obcych | F20: 120 | G20: =F20/E12 -> 0.0522875817 | H20: A.2 | I20: 5 | J20: =I20/J12 -> 0.02380952381
B21: Zajęcia z wychowania fizycznego | F21: 60 | G21: =F21/E12 -> 0.02614379085 | H21: A.8 | I21: x | J21: x
B22: Zajęcia z technologii informacyjnych 2 | F22: 30 | G22: =F22/E12 -> 0.01307189542 | H22: A.7 | I22: 3 | J22: =I22/J12 -> 0.01428571429
B23: Seminarium dyplomowe | F23: 30 | G23: =F23/E12 -> 0.01307189542 | H23: D1.6; D2.7 | I23: 4 | J23: =I23/J12 -> 0.01904761905
B24: Praktyka zawodowa 3 | F24: 160 | G24: x | H24: C.20 | I24: 4 | J24: =I24/J12 -> 0.01904761905
B25: Przygotowanie i złożenie pracy dyplomowej oraz przygotowanie do egzaminu dyplomowego | F25: x | G25: x | H25: C.21 | I25: 15 | J25: =I25/J12 -> 0.07142857143
B27: Zajęcia do wyboru (co najmniej 30% ECTS) | F27: 835 | G27: =F27/E12 -> 0.3638344227 | H27: A.2; A.6; A.8; C.20; C.21; D1; D2 | I27: 77 | J27: =I27/J12 -> 0.3666666667
B30: Zajęcia wymagające bezpośredniego udziału nauczyciela akademickiego | F30: x | G30: x | I30: 195 | J30: =I30/J12 -> 0.9285714286
B32: Zajęcia powiązane z prowadzonymi badaniami naukowymi w dziedzeninie nauki / sztuki związanej z kierunkiem studiów służące zdobywaniu pogłębionej wiedzy i umiejętności prowadzenia badań naukowych (ponad 50% ogólnej liczby pkt. ECTS) 4 | F32: 1230 | G32: =F32/E12 -> 0.5359477124 | I32: 112 | J32: =I32/J12 -> 0.5333333333
B34: Zajęcia powiązane z praktycznym przygotowaniem zawodowym służące zdobywaniu umiejętności praktycznych i kompetencji społecznych, prowadzone w warunkach właściwych dla danego zakresu działalności zawodowej, w sposób umożliwiający wykonywanie określonych czynności praktycznych i przez osoby, z których większość posiada doświadczenie zawodowe zdobyte poza uczelnią odpowiadające zakresowi tych zajęć (ponad 50% ogólnej liczby pkt. ECTS) 5 | F34: x | G34: x | I34: x | J34: x
B36: Procentowy udział liczby punktów ECTS dla obszarów kształcenia w programie studiów dla kierunków przyporządkowanych do więcej niż jednego obszaru kształcenia
B37: 1. obszar kształcenia w zakresie nauk technicznych | I37: 1
B38: ŁĄCZNIE: | I38: 100% pkt. ECTS
B45: 1 w ogólnej liczbie godzin i punktów ECTS przewidzianych w planie studiów
B46: 2 niewymagane dla studiów II stopnia | F46: ……………………………………………
B47: 3 niewymagane na studiach II stopnia o profilu ogólnoakademickim | F47: pieczątka i podpis kierownika samodzielnej jednostki
B48: 4dotyczy jedynie studiów o profilu ogólnoakademickim, wymagana realizacja zajęć powiązanych z prowadzonymi badaniami naukowymi w dziedzinie wyszczególnionej w opisie efektów kształcenia w wymiarze ponad 50% ogólnej liczby pkt. ECTS (wymagane dostosowanie programów prowadzonych kierunków/ poziomów studiów zgodnie z terminem określonym w pkt VII.5 wytycznych Senatu)
B49: 5dotyczy jedynie studiów o profilu praktycznym, wymagana realizacja zajęć powiązanych z praktycznym przygotowaniem zawodowym w wymiarze ponad 50% ogólnej liczby pkt. ECTS (wymagane dostosowanie programów prowadzonych kierunków /poziomów studiów zgodnie z terminem określonym w pkt VII.5 wytycznych Senatu) | F49: ZATWIERDZAM
F50: ………………………………………………………
F51: Prorektor ds. Dydaktycznych i Studenckich
